bitfinex-derivatives/quotes_BTCF0:USTF0_20241203
["timestamp","ask_amount","ask_price","bid_price","bid_amount"]
[1733218153714,0.18843685,95296.0,95294.0,0.052452]
[1733218154013,0.18843685,95296.0,95295.0,0.13008]
[1733218154207,0.285043,95296.0,95295.0,0.13008]
[1733218154608,0.285043,95296.0,95295.0,0.13408]
[1733218155916,0.285043,95296.0,95295.0,0.13508]
[1733218156114,0.3979265,95296.0,95295.0,0.13508]
[1733218158110,0.3979265,95296.0,95295.0,0.187533]
[1733218158311,0.3979265,95296.0,95295.0,0.183533]
[1733218158618,0.3979265,95296.0,95295.0,0.187533]
[1733218159215,0.39792696,95296.0,95295.0,0.187533]
[1733218159714,0.39792696,95296.0,95295.0,0.183533]
[1733218159915,0.39792696,95296.0,95295.0,0.187533]
[1733218163417,0.28504346,95296.0,95295.0,0.183533]
[1733218163611,0.28504346,95296.0,95295.0,0.187533]
[1733218163818,0.18843685,95296.0,95295.0,0.187533]
[1733218164017,0.18843685,95296.0,95295.0,0.186533]
[1733218164616,0.18843685,95296.0,95295.0,0.185533]
[1733218164822,0.28504438,95296.0,95295.0,0.185533]
[1733218166224,0.28604438,95296.0,95295.0,0.182533]
[1733218166916,0.28604438,95296.0,95295.0,0.052453]
[1733218167220,0.28604438,95296.0,95295.0,0.182533]
[1733218167724,0.28504438,95296.0,95295.0,0.182533]
[1733218168015,0.28504438,95296.0,95295.0,0.183533]
[1733218169012,0.18843685,95296.0,95295.0,0.186533]
[1733218169222,0.28504822,95296.0,95295.0,0.186533]
[1733218169424,0.28504822,95296.0,95295.0,0.186493]
[1733218169724,0.28504822,95296.0,95295.0,0.256493]
[1733218170517,0.28504822,95296.0,95295.0,0.253493]
[1733218170824,0.28504822,95296.0,95295.0,0.255493]
[1733218171224,0.3979377,95296.0,95295.0,0.255493]
[1733218171425,0.3979377,95296.0,95295.0,0.254493]
[1733218173411,0.3979377,95296.0,95295.0,0.252493]
[1733218173612,0.3979377,95296.0,95295.0,0.254493]
[1733218174019,0.39793962,95296.0,95295.0,0.254493]
[1733218177122,0.36593962,95296.0,95295.0,0.254493]
[1733218178826,0.36593407,95296.0,95295.0,0.254493]
[1733218180817,0.25304459,95296.0,95295.0,0.254493]
[1733218184029,0.25304259,95296.0,95295.0,0.254493]
[1733218184227,0.25304259,95296.0,95295.0,0.124453]
[1733218184431,0.25304259,95296.0,95295.0,0.254453]
[1733218186029,0.15643685,95296.0,95295.0,0.615253]
[1733218186331,0.1564559,95298.0,95295.0,0.615253]
[1733218186523,0.1564559,95298.0,95297.0,0.05245]
[1733218186828,9.083e-05,95299.0,95298.0,0.052449]
[1733218187135,0.15748455,95299.0,95298.0,0.052449]
[1733218188022,0.254083,95299.0,95298.0,0.052449]
[1733218189235,0.255083,95299.0,95298.0,0.052449]
[1733218192730,0.25508274,95299.0,95298.0,0.052449]
[1733218193823,0.25508304,95299.0,95298.0,0.052449]
[1733218194219,0.36795794,95299.0,95298.0,0.052449]
[1733218196129,0.36795794,95299.0,95298.0,0.182449]
[1733218196528,0.36795794,95299.0,95298.0,0.052449]
[1733218196730,0.36795794,95299.0,95298.0,0.182449]
[1733218201228,0.15848455,95299.0,95298.0,0.182449]
[1733218203336,0.25508463,95299.0,95298.0,0.182449]
[1733218205835,0.15848455,95299.0,95298.0,0.182449]
[1733218207826,0.25508618,95299.0,95298.0,0.182449]
[1733218208228,0.25508618,95299.0,95298.0,0.182409]
[1733218209334,0.50356906,95299.0,95298.0,0.182409]
[1733218209538,0.36796522,95299.0,95298.0,0.182409]
[1733218210432,0.60049075,95299.0,95298.0,0.182409]
[1733218210640,0.71336979,95299.0,95298.0,0.052449]
[1733218210834,0.3679683,95299.0,95298.0,0.182409]
[1733218211039,0.3679683,95299.0,95294.0,0.029442]
[1733218211235,0.052451,95295.0,95294.0,0.052451]
[1733218211438,0.052451,95295.0,95294.0,0.182411]
[1733218211639,0.20990971,95295.0,95294.0,0.182411]
[1733218211837,0.3065235,95295.0,95294.0,0.182411]
[1733218212145,0.58844903,95295.0,95294.0,0.182411]
[1733218212337,0.45261595,95295.0,95294.0,0.182411]
[1733218212642,0.45261595,95295.0,95294.0,0.184411]
[1733218213236,0.68502422,95295.0,95294.0,0.184411]
[1733218213441,0.79791667,95295.0,95294.0,0.184411]
[1733218213642,0.74546567,95295.0,95294.0,0.184411]
[1733218213942,0.2872725,95295.0,95294.0,0.184411]
[1733218216137,0.19065871,95295.0,95294.0,0.184411]
[1733218216337,0.40015591,95295.0,95294.0,0.184411]
[1733218218841,0.33971933,95295.0,95294.0,0.002]
[1733218219136,0.33971933,95295.0,95291.0,0.03283522]
[1733218219137,0.052452,95292.0,95291.0,0.0026]
[1733218219342,0.50986162,95292.0,95291.0,0.0026]
[1733218219540,0.78030709,95292.0,95291.0,0.0026]
[1733218219954,0.73966202,95292.0,95291.0,0.0026]
[1733218220152,0.79211402,95292.0,95291.0,0.0026]
[1733218220651,0.79211402,95292.0,95291.0,0.0076]
[1733218221350,0.79211402,95292.0,95284.0,0.12996]
[1733218221351,0.052456,95285.0,95284.0,0.12996]
[1733218221546,0.052459,95280.0,95279.0,0.02894132]
[1733218221746,0.3608,95280.0,95276.0,0.44156]
[1733218221949,0.32356191,95279.0,95278.0,0.12996]
[1733218222148,0.32358139,95279.0,95278.0,0.12996]
[1733218222349,0.48022834,95279.0,95278.0,0.18242]
[1733218223646,0.25325657,95279.0,95278.0,0.18242]
[1733218223852,0.36616852,95279.0,95278.0,0.18242]
[1733218224252,0.41862852,95279.0,95278.0,0.18642]
[1733218224554,0.21010695,95279.0,95278.0,0.18642]
[1733218225251,0.21010695,95279.0,95278.0,0.19042]
[1733218229554,0.21010695,95279.0,95278.0,0.008]
[1733218229747,0.21010695,95279.0,95278.0,0.138]
[1733218230442,0.21010695,95279.0,95278.0,0.19046]
[1733218231853,0.41964765,95279.0,95278.0,0.19046]
[1733218233075,0.36718765,95279.0,95278.0,0.19046]
[1733218234059,0.36718545,95279.0,95278.0,0.19046]
[1733218234560,0.25427443,95279.0,95278.0,0.19046]
[1733218234746,0.15764695,95279.0,95278.0,0.19046]
[1733218234948,0.25427367,95279.0,95278.0,0.19046]
[1733218235150,0.25427367,95279.0,95278.0,0.06046]
[1733218235455,0.25427367,95279.0,95278.0,0.19038]
[1733218236657,0.15764695,95279.0,95278.0,0.19038]
[1733218237255,0.25426645,95279.0,95278.0,0.19038]
[1733218237453,0.15764695,95279.0,95278.0,0.19038]
[1733218238359,0.25426643,95279.0,95278.0,0.19038]
[1733218239461,0.15764695,95279.0,95278.0,0.19038]
[1733218243258,0.15764695,95279.0,95278.0,0.21138008]
[1733218246361,0.25426049,95279.0,95278.0,0.21138008]
[1733218249563,0.25426054,95279.0,95278.0,0.21138008]
[1733218251557,0.25426054,95279.0,95278.0,0.08146008]
[1733218251865,0.25426054,95279.0,95278.0,0.21138008]
[1733218251866,0.15764695,95279.0,95278.0,0.21138008]
[1733218252068,0.15764695,95279.0,95278.0,0.08146008]
[1733218252265,0.15764695,95279.0,95278.0,0.21138008]
[1733218253287,0.25427231,95279.0,95278.0,0.21138008]
[1733218253670,0.15764695,95279.0,95278.0,0.21138008]
[1733218255375,0.15764695,95279.0,95278.0,0.08146008]
[1733218255376,0.2542714,95279.0,95278.0,0.08146008]
[1733218255575,0.2542714,95279.0,95278.0,0.21138008]
[1733218256179,0.2542714,95279.0,95278.0,0.15892008]
[1733218256388,0.2542714,95279.0,95278.0,0.02900008]
[1733218256691,0.6675304,95279.0,95278.0,0.13792]
[1733218257582,0.6150714,95279.0,95278.0,0.19038]
[1733218258077,0.6150714,95279.0,95278.0,0.06046]
[1733218258381,0.6150714,95279.0,95278.0,0.19038]
[1733218259281,0.6150714,95279.0,95278.0,0.06046]
[1733218259475,0.6150714,95279.0,95278.0,0.19038]
[1733218261681,0.51844695,95279.0,95278.0,0.19038]
[1733218261883,0.61507457,95279.0,95278.0,0.19038]
[1733218263277,0.57090895,95279.0,95278.0,0.19038]
[1733218263482,0.57090895,95279.0,95278.0,0.008]
[1733218263783,0.052462,95278.0,95264.0,0.14038]
[1733218263986,0.052462,95278.0,95264.0,0.18235]
[1733218263987,0.052469,95265.0,95264.0,0.18235]
[1733218264179,0.14910962,95265.0,95264.0,0.18235]
[1733218264380,0.36962973,95265.0,95264.0,0.05247]
[1733218265888,0.37062973,95265.0,95264.0,0.06047]
[1733218266378,0.31816073,95265.0,95264.0,0.06047]
[1733218267284,0.22252011,95265.0,95264.0,0.06047]
[1733218268581,0.3191652,95265.0,95264.0,0.06047]
[1733218271374,0.2877652,95265.0,95264.0,0.06047]
[1733218271977,0.2877652,95265.0,95264.0,0.19035]
[1733218272384,0.34023447,95265.0,95264.0,0.19035]
[1733218275781,0.28776547,95265.0,95264.0,0.19035]
[1733218275983,0.34023547,95265.0,95264.0,0.19035]
[1733218276581,0.24359011,95265.0,95264.0,0.19035]
[1733218277782,0.19112011,95265.0,95264.0,0.19035]
[1733218282891,0.55192011,95265.0,95264.0,0.06047]
[1733218283091,0.55192011,95265.0,95264.0,0.19035]
[1733218283793,0.81396535,95265.0,95264.0,0.19035]
[1733218283995,0.76149535,95265.0,95264.0,0.19035]
[1733218285399,0.25636572,95265.0,95264.0,0.19035]
[1733218285595,0.09864561,95265.0,95264.0,0.19035]
[1733218285795,0.0026,95272.0,95271.0,0.052466]
[1733218285990,0.0026,95279.0,95278.0,0.052462]
[1733218286190,0.11292243,95283.0,95282.0,0.05246]
[1733218286393,0.15833839,95283.0,95282.0,0.05246]
[1733218286582,0.11292243,95283.0,95282.0,0.05246]
[1733218286994,0.15745228,95283.0,95282.0,0.05246]
[1733218287200,0.27037471,95283.0,95282.0,0.05246]
[1733218287382,0.11292243,95283.0,95282.0,0.05246]
[1733218287583,0.27137471,95283.0,95282.0,0.05246]
[1733218287892,0.27137471,95283.0,95282.0,0.05546]
[1733218288788,0.15845228,95283.0,95282.0,0.05546]
[1733218288990,0.15845228,95283.0,95282.0,0.08566287]
[1733218289191,0.27135165,95283.0,95282.0,0.08566287]
[1733218289993,0.15845228,95283.0,95282.0,0.08566287]
[1733218290890,0.25507152,95283.0,95282.0,0.08566287]
[1733218291700,0.15845228,95283.0,95282.0,0.08566287]
[1733218293795,0.15845228,95283.0,95282.0,0.21546287]
[1733218296695,0.15845228,95283.0,95282.0,0.08566287]
[1733218296896,0.15845228,95283.0,95282.0,0.21546287]
[1733218300196,0.15845228,95283.0,95282.0,0.08566287]
[1733218300397,0.15845228,95283.0,95282.0,0.21546287]
[1733218310800,0.25506402,95283.0,95282.0,0.21546287]
[1733218312314,0.0026,95291.0,95282.0,0.21546287]
[1733218312609,0.0026,95291.0,95290.0,0.052456]
[1733218312813,0.0026,95298.0,95297.0,0.052452]
[1733218313011,9.083e-05,95299.0,95298.0,0.052452]
[1733218313615,9.083e-05,95299.0,95298.0,0.05255472]
[1733218314504,8.3e-07,95299.0,95298.0,0.05255472]
[1733218314906,0.00100083,95299.0,95298.0,0.05255472]
[1733218315108,0.11288167,95305.0,95304.0,0.052448]
[1733218315311,0.11196084,95305.0,95304.0,0.493528]
[1733218315508,0.0026,95312.0,95311.0,0.052445]
[1733218315820,0.033,95321.0,95318.0,0.052441]
[1733218315821,0.0026,95319.0,95318.0,0.052441]
[1733218316107,0.033,95321.0,95320.0,0.05244]
[1733218316312,0.03313189,95321.0,95320.0,0.05244]
[1733218316515,0.19083733,95321.0,95320.0,0.05244]
[1733218317615,0.19783733,95321.0,95320.0,0.05244]
[1733218318011,0.19783733,95321.0,95320.0,0.08133935]
[1733218318314,0.20283733,95321.0,95320.0,0.08233935]
[1733218321914,0.31569462,95321.0,95320.0,0.08233935]
[1733218323713,0.28269462,95321.0,95320.0,0.08233935]
[1733218328914,0.16983733,95321.0,95320.0,0.08233935]
[1733218337316,0.28269425,95321.0,95320.0,0.08233935]
[1733218337516,0.16983733,95321.0,95320.0,0.08233935]
[1733218337920,0.28269425,95321.0,95320.0,0.08233935]
[1733218339013,0.28269425,95321.0,95320.0,0.44313935]
[1733218339219,0.16983733,95321.0,95320.0,0.44313935]
[1733218339616,0.28269028,95321.0,95320.0,0.44313935]
[1733218340314,0.27769028,95321.0,95320.0,0.44313935]
[1733218340626,0.00713189,95321.0,95320.0,0.44313935]
[1733218340822,0.00713189,95321.0,95320.0,0.44213935]
[1733218341023,0.00413189,95321.0,95320.0,0.44213935]
[1733218345727,0.0026,95327.0,95320.0,0.44213935]
[1733218345926,0.11283927,95345.0,95333.0,0.052432]
[1733218346228,0.15635831,95340.0,95336.0,0.3608]
[1733218346423,0.0321,95354.0,95340.0,0.052428]
[1733218346825,0.15793222,95341.0,95340.0,0.052428]
[1733218347027,0.15635831,95341.0,95340.0,0.052428]
[1733218347328,0.00012945,95345.0,95344.0,0.052426]
[1733218347525,0.00012945,95345.0,95344.0,0.542946]
[1733218348733,0.00012945,95345.0,95344.0,0.182146]
[1733218349537,0.00012945,95345.0,95344.0,0.543946]
[1733218353634,0.00012945,95345.0,95344.0,0.543866]
[1733218355333,0.00012945,95345.0,95344.0,0.183066]
[1733218363640,0.00012945,95345.0,95344.0,0.182066]
[1733218363827,0.00112945,95345.0,95344.0,0.182066]
[1733218365152,0.00112945,95345.0,95340.0,0.03196595]
[1733218365153,0.15769912,95345.0,95340.0,0.08439395]
[1733218365351,0.21012512,95345.0,95344.0,0.12964]
[1733218365644,0.052426,95344.0,95340.0,0.0026]
[1733218365851,0.3608,95341.0,95340.0,0.055029]
[1733218366031,0.52607007,95341.0,95340.0,0.055029]
[1733218366232,0.68325519,95341.0,95340.0,0.055029]
[1733218366538,0.57041312,95341.0,95340.0,0.055029]
[1733218368032,0.57041312,95341.0,95340.0,0.0026]
[1733218368232,0.57041312,95341.0,95324.0,0.02776012]
[1733218368233,0.05245,95340.0,95324.0,0.02776012]
[1733218368549,0.413237,95327.0,95326.0,0.052436]
[1733218368937,0.57000742,95327.0,95326.0,0.052436]
[1733218370238,0.57000742,95327.0,95324.0,0.00157338]
[1733218370441,0.052437,95325.0,95324.0,0.00157338]
[1733218370839,0.32258201,95325.0,95324.0,0.00157338]
[1733218371343,0.35378201,95325.0,95324.0,0.00157338]
[1733218371540,0.24091741,95325.0,95324.0,0.00157338]
[1733218372150,0.27075284,95325.0,95324.0,0.00157338]
[1733218372436,0.27275284,95325.0,95324.0,0.00157338]
[1733218374138,0.27575284,95325.0,95324.0,0.00157338]
[1733218376535,0.27575284,95325.0,95311.0,0.052444]
[1733218376536,0.052444,95312.0,95311.0,0.052444]
[1733218377041,0.20905237,95312.0,95311.0,0.052444]
[1733218377544,0.15660837,95312.0,95302.0,0.052449]
[1733218377749,0.15660837,95312.0,95303.0,0.052448]
[1733218377750,0.052448,95304.0,95303.0,0.052448]
[1733218378050,0.20949676,95304.0,95303.0,0.052448]
[1733218378346,0.052451,95299.0,95298.0,0.0819533]
[1733218378546,0.052451,95299.0,95298.0,0.05255272]
[1733218378748,0.21051836,95299.0,95298.0,0.05255272]
[1733218379845,0.21051836,95299.0,95298.0,0.00010272]
[1733218380643,0.21151836,95299.0,95298.0,0.00810272]
[1733218380843,0.2116225,95299.0,95298.0,0.00810272]
[1733218381257,0.2116225,95299.0,95298.0,0.01310272]
[1733218382957,0.32452182,95299.0,95298.0,0.01310272]
[1733218383750,0.32452182,95299.0,95285.0,0.0105]
[1733218383751,0.052457,95286.0,95285.0,0.0105]
[1733218383954,0.052457,95286.0,95281.0,0.021]
[1733218383955,0.05246,95282.0,95281.0,0.0026]
[1733218384256,0.05246,95282.0,95276.0,0.182103]
[1733218384257,0.052461,95281.0,95279.0,0.052461]
[1733218384653,0.15657512,95280.0,95279.0,0.052461]
[1733218385850,0.15757512,95280.0,95279.0,0.060461]
[1733218387154,0.15657512,95280.0,95279.0,0.052461]
[1733218387351,0.15757512,95280.0,95279.0,0.052461]
[1733218387656,0.052463,95276.0,95274.0,0.052464]
[1733218387962,0.1579505,95275.0,95274.0,0.052464]
[1733218388755,0.1579505,95275.0,95273.0,0.12964]
[1733218388956,0.052464,95274.0,95273.0,0.12964]
[1733218389258,0.052466,95270.0,95268.0,0.05259193]
[1733218389459,0.21004899,95274.0,95272.0,0.052465]
[1733218389759,0.052464,95274.0,95272.0,0.052465]
[1733218389963,0.15758499,95273.0,95272.0,0.052465]
[1733218390753,0.15758499,95273.0,95272.0,0.055465]
[1733218390954,0.15858499,95273.0,95272.0,0.055465]
[1733218391470,0.21104999,95273.0,95272.0,0.052465]
[1733218391758,0.21204999,95273.0,95272.0,0.055465]
[1733218392154,0.21204999,95273.0,95272.0,0.003]
[1733218392549,0.15958499,95273.0,95272.0,0.055465]
[1733218396855,0.002,95273.0,95272.0,0.055465]
[1733218399162,0.02891648,95308.0,95290.0,0.052456]
[1733218399358,0.052449,95303.0,95295.0,0.052453]
[1733218399562,0.05245,95300.0,95295.0,0.052453]
[1733218399758,0.51872633,95296.0,95295.0,0.052453]
[1733218401060,0.51872633,95296.0,95292.0,0.052454]
[1733218401249,0.51872633,95296.0,95290.0,0.13068]
[1733218401564,0.51872633,95296.0,95290.0,0.183134]
[1733218401565,0.052455,95291.0,95290.0,0.183134]
[1733218401861,0.052453,95295.0,95293.0,0.052453]
[1733218402059,0.36204001,95296.0,95293.0,0.052453]
[1733218402060,0.052453,95294.0,95293.0,0.052453]
[1733218402265,0.20951669,95291.0,95290.0,0.182136]
[1733218402463,0.052455,95291.0,95290.0,0.12968]
[1733218402761,0.052455,95291.0,95287.0,0.12968]
[1733218402762,0.052457,95288.0,95287.0,0.12968]
[1733218402960,0.413257,95288.0,95287.0,0.12968]
[1733218403161,0.413257,95288.0,95283.0,0.052459]
[1733218403162,0.052459,95284.0,95283.0,0.052459]
[1733218403556,0.20971843,95284.0,95283.0,0.052459]
[1733218404368,0.15725943,95284.0,95283.0,0.052459]
[1733218404667,0.15725943,95284.0,95283.0,0.053459]
[1733218404668,0.001,95284.0,95283.0,0.053459]
[1733218405166,0.15905099,95284.0,95283.0,0.053459]
[1733218405570,0.15905099,95284.0,95283.0,0.056459]
[1733218405972,0.15905099,95284.0,95283.0,0.06094629]
[1733218407077,0.15905099,95284.0,95283.0,0.09274629]
[1733218411874,0.25566183,95284.0,95283.0,0.09274629]
[1733218412369,0.25566183,95284.0,95283.0,0.09381985]
[1733218413165,0.15905099,95284.0,95283.0,0.09381985]
[1733218414064,0.15905099,95284.0,95283.0,0.06201985]
[1733218415382,0.25566814,95284.0,95283.0,0.06201985]
[1733218415582,0.15905099,95284.0,95283.0,0.06201985]
[1733218416080,0.25566814,95284.0,95283.0,0.06201985]
[1733218416276,0.15905099,95284.0,95283.0,0.06201985]
[1733218417486,0.09761219,95284.0,95283.0,0.06201985]
[1733218417886,0.09761219,95284.0,95283.0,0.0830189]
[1733218418085,0.09760783,95284.0,95283.0,0.0830189]
[1733218418986,0.001,95284.0,95283.0,0.0830189]
[1733218423386,0.001,95284.0,95283.0,0.2126189]
[1733218426980,0.09761141,95284.0,95283.0,0.2126189]
[1733218430983,0.001,95284.0,95283.0,0.2126189]
[1733218435695,0.001,95284.0,95283.0,0.0830189]
[1733218435902,0.001,95284.0,95283.0,0.2126189]
[1733218442893,0.001,95284.0,95283.0,0.5734189]
[1733218448414,0.0301,95295.0,95294.0,0.052454]
[1733218448613,0.0301,95295.0,95294.0,0.542854]
[1733218448910,0.18821983,95295.0,95294.0,0.542854]
[1733218449311,0.284821,95295.0,95294.0,0.54841485]
[1733218449503,0.3986987,95295.0,95294.0,0.54841485]
[1733218449710,0.24057887,95295.0,95294.0,0.54841485]
[1733218449904,0.12770117,95295.0,95294.0,0.54841485]
[1733218450211,0.0311,95295.0,95294.0,0.54841485]
[1733218450407,0.12770117,95295.0,95294.0,0.54841485]
[1733218451110,0.12770117,95295.0,95294.0,0.55241485]
[1733218451313,0.09760117,95295.0,95294.0,0.55241485]
[1733218451705,0.09760117,95295.0,95294.0,0.55041485]
[1733218451902,0.00124001,95312.0,95309.0,0.052445]
[1733218452102,0.03167412,95319.0,95314.0,0.052443]
[1733218452309,0.00157412,95319.0,95314.0,0.05800385]
[1733218452511,0.00157412,95319.0,95318.0,0.41324]
[1733218452805,0.00157412,95319.0,95318.0,0.54284]
[1733218453313,0.00157412,95319.0,95318.0,0.54840085]
[1733218453907,0.00157412,95319.0,95318.0,0.578202]
[1733218454114,0.00557412,95319.0,95318.0,0.578202]
[1733218454717,0.01257412,95319.0,95318.0,0.578202]
[1733218455019,0.01357412,95319.0,95318.0,0.578202]
[1733218456807,0.01357412,95319.0,95318.0,0.217402]
[1733218457014,0.012,95319.0,95318.0,0.217362]
[1733218457709,0.012,95319.0,95318.0,0.035362]
[1733218457909,0.16888988,95319.0,95318.0,0.115022]
[1733218458510,0.16888988,95319.0,95316.0,0.12956]
[1733218459311,0.052442,95315.0,95313.0,0.02932134]
[1733218459514,0.0313,95314.0,95313.0,0.07966]
[1733218459813,0.052444,95312.0,95310.0,0.0026]
[1733218460115,0.51874106,95311.0,95310.0,0.0026]
[1733218460314,0.51874106,95311.0,95306.0,0.052447]
[1733218460520,0.052446,95309.0,95306.0,0.052447]
[1733218460717,0.51998107,95311.0,95303.0,0.12956]
[1733218460921,0.413244,95311.0,95308.0,0.052446]
[1733218461215,0.18948999,95310.0,95303.0,0.12956]
[1733218461516,0.18948999,95310.0,95305.0,0.052446]
[1733218461517,0.052444,95309.0,95305.0,0.052446]
[1733218461907,0.15710471,95308.0,95305.0,0.052446]
[1733218462316,0.15710471,95308.0,95306.0,0.052446]
[1733218462723,0.15817234,95309.0,95308.0,0.052445]
[1733218463024,0.0322,95310.0,95308.0,0.052445]
[1733218463413,0.15917234,95309.0,95308.0,0.052445]
[1733218464212,0.15817234,95309.0,95308.0,0.052445]
[1733218464816,0.16117234,95309.0,95308.0,0.052445]
[1733218465014,0.16317234,95309.0,95308.0,0.052445]
[1733218465718,0.16317234,95309.0,95302.0,0.052449]
[1733218465920,0.16317234,95309.0,95305.0,0.052447]
[1733218466423,0.15817234,95309.0,95305.0,0.052447]
[1733218466625,0.16317234,95309.0,95305.0,0.052447]
[1733218467121,0.16117234,95309.0,95305.0,0.052447]
[1733218467721,0.16217234,95309.0,95305.0,0.052447]
[1733218468117,0.16117234,95309.0,95305.0,0.052447]
[1733218468424,0.16117234,95309.0,95301.0,0.12956]
[1733218468425,0.16017234,95309.0,95307.0,0.052446]
[1733218468922,0.1128761,95308.0,95307.0,0.052446]
[1733218469320,0.15760035,95308.0,95307.0,0.052446]
[1733218470618,0.16160035,95308.0,95307.0,0.052446]
[1733218471028,0.004,95308.0,95307.0,0.052446]
[1733218471327,0.16084811,95308.0,95307.0,0.052446]
[1733218476025,0.15884811,95308.0,95307.0,0.052446]
[1733218476228,0.16084811,95308.0,95307.0,0.052446]
[1733218476518,0.16084811,95308.0,95307.0,0.182006]
[1733218480518,0.15884811,95308.0,95307.0,0.182006]
[1733218481026,0.16084811,95308.0,95307.0,0.182006]
[1733218485138,0.15884811,95308.0,95307.0,0.182006]
[1733218485319,0.16084811,95308.0,95307.0,0.182006]
[1733218485828,0.15884811,95308.0,95307.0,0.182006]
[1733218486027,0.16084811,95308.0,95307.0,0.182006]
[1733218487429,0.52164811,95308.0,95307.0,0.182006]
[1733218489125,0.16084811,95308.0,95307.0,0.182006]
[1733218489528,0.11084811,95308.0,95307.0,0.052446]
[1733218489730,0.0026,95315.0,95314.0,0.052443]
[1733218489923,8.867e-05,95321.0,95314.0,0.413243]
[1733218490124,8.867e-05,95321.0,95320.0,0.052439]
[1733218491129,8.867e-05,95321.0,95320.0,0.08208778]
[1733218492630,8.867e-05,95321.0,95320.0,0.08408778]
[1733218492936,0.00908867,95321.0,95320.0,0.08408778]
[1733218493439,8.867e-05,95321.0,95320.0,0.08208778]
[1733218493738,0.00108867,95321.0,95320.0,0.09108778]
[1733218494233,0.00108867,95321.0,95320.0,0.09008778]
[1733218494623,0.00108867,95321.0,95320.0,0.09108778]
[1733218495531,0.00108867,95321.0,95320.0,0.09008778]
[1733218496231,0.00108867,95321.0,95320.0,0.08908778]
[1733218496432,0.00108867,95321.0,95320.0,0.09008778]
[1733218498738,0.00108867,95321.0,95320.0,0.21960778]
[1733218499033,0.00108867,95321.0,95320.0,0.18815864]
[1733218499234,0.00108867,95321.0,95320.0,0.18515864]
[1733218499534,0.00108867,95321.0,95320.0,0.23959764]
[1733218499927,0.00108867,95321.0,95320.0,0.11007764]
[1733218500129,0.00108867,95321.0,95320.0,0.05763864]
[1733218500329,0.00108867,95321.0,95320.0,0.18715864]
[1733218500731,0.00108867,95321.0,95320.0,0.23959764]
[1733218500937,0.05352767,95321.0,95320.0,0.16616878]
[1733218501234,0.41945286,95321.0,95320.0,0.007]
[1733218501433,0.36701386,95321.0,95316.0,0.12952]
[1733218501637,0.052441,95317.0,95314.0,0.052443]
[1733218501843,0.09658105,95316.0,95314.0,0.052443]
[1733218502138,0.25485589,95316.0,95314.0,0.052443]
[1733218502335,0.20943524,95315.0,95314.0,0.052443]
[1733218502631,0.36715012,95315.0,95314.0,0.052443]
[1733218503038,0.36715012,95315.0,95314.0,0.057443]
[1733218503433,0.36715012,95315.0,95314.0,0.052443]
[1733218503634,0.36815012,95315.0,95314.0,0.005]
[1733218504036,0.36715012,95315.0,95307.0,0.02982161]
[1733218504227,0.052444,95313.0,95312.0,0.13036]
[1733218504432,0.26187924,95313.0,95312.0,0.13036]
[1733218504637,0.4192543,95313.0,95312.0,0.13036]
[1733218505241,0.4192543,95313.0,95312.0,0.182804]
[1733218505834,0.3668103,95313.0,95312.0,0.182804]
[1733218506334,0.27122925,95313.0,95312.0,0.182804]
[1733218507240,0.27122925,95313.0,95312.0,0.13036]
[1733218507445,0.32367225,95313.0,95312.0,0.13336]
[1733218508142,0.21081806,95313.0,95312.0,0.13336]
[1733218509034,0.32368714,95313.0,95312.0,0.13336]
[1733218509234,0.21081806,95313.0,95312.0,0.13336]
[1733218509730,0.21081806,95313.0,95312.0,0.003]
[1733218510439,0.052449,95303.0,95302.0,0.182809]
[1733218510643,0.413249,95303.0,95302.0,0.0826152]
[1733218510832,0.57081122,95303.0,95302.0,0.0826152]
[1733218511531,0.51836222,95303.0,95299.0,0.13036]
[1733218511732,0.05245,95300.0,95299.0,0.182811]
[1733218512142,0.20899328,95300.0,95299.0,0.182811]
[1733218512740,0.20899328,95300.0,95299.0,0.052451]
[1733218512929,0.20999328,95300.0,95299.0,0.052451]
[1733218513638,0.20999328,95300.0,95299.0,0.053451]
[1733218513837,0.20999328,95300.0,95299.0,0.001]
[1733218514332,0.20999328,95300.0,95296.0,0.13036]
[1733218514333,0.052452,95297.0,95296.0,0.13036]
[1733218514738,0.20953287,95297.0,95296.0,0.13036]
[1733218515340,0.20953287,95297.0,95296.0,0.182813]
[1733218515530,0.15808087,95297.0,95296.0,0.182813]
[1733218516332,0.25469298,95297.0,95296.0,0.182813]
[1733218516743,0.25469289,95297.0,95296.0,0.182813]
[1733218517144,0.25569289,95297.0,95296.0,0.182813]
[1733218518545,0.002,95297.0,95296.0,0.182813]
[1733218518736,0.002,95297.0,95296.0,0.215013]
[1733218519140,0.0026,95303.0,95302.0,0.052449]
[1733218519343,0.0026,95309.0,95308.0,0.052446]
[1733218519642,0.3608,95313.0,95312.0,0.052444]
[1733218519843,0.0026,95314.0,95308.0,0.1304]
[1733218519844,0.0026,95319.0,95318.0,0.05244]
[1733218520051,0.3444197,95319.0,95318.0,0.18284]
[1733218520242,0.50090882,95319.0,95318.0,0.18284]
[1733218520437,0.25307925,95319.0,95318.0,0.18284]
[1733218521044,8.867e-05,95321.0,95320.0,0.052439]
[1733218521345,0.15801685,95321.0,95320.0,0.413239]
[1733218522446,0.15801685,95321.0,95320.0,0.414239]
[1733218523542,0.15801685,95321.0,95320.0,0.415239]
[1733218524642,0.25459604,95321.0,95320.0,0.415239]
[1733218526048,0.15801685,95321.0,95320.0,0.415239]
[1733218526943,0.15801685,95321.0,95320.0,0.3628]
[1733218527555,0.15801685,95321.0,95320.0,0.3618]
[1733218528554,0.25459806,95321.0,95320.0,0.3618]
[1733218528952,0.25459806,95321.0,95320.0,0.3608]
[1733218529148,0.25459806,95321.0,95320.0,0.3618]
[1733218530356,0.25459806,95321.0,95320.0,0.3628]
[1733218530856,0.25459806,95321.0,95320.0,0.3618]
[1733218531047,0.25459806,95321.0,95320.0,0.3608]
[1733218531352,0.25459806,95321.0,95320.0,0.3618]
[1733218531748,0.25459806,95321.0,95320.0,0.3628]
[1733218532156,0.25459806,95321.0,95320.0,0.3618]
[1733218532356,0.25459806,95321.0,95320.0,0.3628]
[1733218532752,0.25459806,95321.0,95320.0,0.002]
[1733218533256,0.25459806,95321.0,95320.0,0.001]
[1733218533461,0.25559806,95321.0,95320.0,0.001]
[1733218533851,0.25659806,95321.0,95318.0,0.15993386]
[1733218534160,0.09658121,95320.0,95318.0,0.15993386]